Cogmind - Beta 12 X1 @@@ ROGUE MODE // 2022.08.30 @ 20:14:59 // AFD2020/Player2 Player: Terminus Result: Core destroyed Performance ------------- Evolutions (8) 4000 Regions Visited (29) 5800 Robots Destroyed (321) 1605 Value Destroyed (15211) 15211 Prototype IDs (55) 1100 Alien Tech Used (2) 400 Bonus (20108) 20108 TOTAL SCORE: 48224 Bonus ------- Triggered High Security 1000 High Alert Combat Kills 3177 Follower Combat Kills 12546 Network Hubs Disabled 200 Met Data Miner 300 Met Zhirov 300 Met Warlord at Base 500 MAIN.C Attacked Warlord 500 Warlord Defense Kills 3838 Met R17 at Cetus 500 Met R17 at Research 2000 Scanned by Researcher 500 Friendly Fire -5253 Cogmind --------- Core Integrity 0/1450 Matter 240/300 Energy 700/700 System Corruption 0% Temperature Cool (0) Movement Treading (158) Location -2/Quarantine Parts ------- > --- POWER (2) -------- Vortex Chain Reactor > --- PROPULSION (6) --- Armored Heavy Treads Centrium Heavy Treads Biometal Heavy Treads > --- UTILITY (11) ----- Experimental Power Amplifier 2N-1CE's Frost Array Huge Storage Unit Advanced Targeting Computer Experimental Core Analyzer Advanced Weapon Cycler SHELL Armor Improved Energy Mantle Improved Hacking Suite > --- WEAPON (4) ------- Advanced Plasma Cannon Enhanced Nova Cannon Railgun Helical Railgun > --- INVENTORY (25) --- Heavy Antimatter Reactor Quantum Reactor Improved Quantum Reactor Heavy Siege Treads Armored Heavy Treads Experimental Energy Well (600) Experimental Energy Well (600) YI-UF0's Bottomless Matter Pit (1230) Advanced Targeting Computer Advanced Target Analyzer Particle Accelerator Quantum Capacitor Graphene Brace Improved Energy Mantle Long-range Tractor Beam Cooled Plasma Cannon Railgun Helical Railgun Helical Railgun Plasma Cutter Peak State ------------ > --- POWER ------------ Vortex Chain Reactor > --- PROPULSION ------- Centrium Heavy Treads Centrium Heavy Treads Biometal Heavy Treads > --- UTILITY ---------- Experimental Power Amplifier 2N-1CE's Frost Array Huge Storage Unit Advanced Signal Interpreter Experimental Core Analyzer Advanced Weapon Cycler SHELL Armor Improved Energy Mantle Improved Hacking Suite > --- WEAPON ----------- Railgun Railgun Helical Railgun Helical Railgun > --- INVENTORY -------- Heavy Antimatter Reactor Quantum Reactor Improved Quantum Reactor Heavy Siege Treads Armored Heavy Treads Coolant Network Experimental Energy Well Experimental Energy Well YI-UF0's Bottomless Matter Pit Advanced Target Analyzer Particle Accelerator Quantum Capacitor Graphene Brace Improved Energy Mantle Long-range Tractor Beam Transdimensional Reconstructor Cooled Plasma Cannon Advanced Plasma Cannon Enhanced Nova Cannon Helical Railgun Plasma Cutter [Rating: 212] Favorites ----------- Power Fission Core Engine Heavy Ion Engine Power Core Fission Core Reactor Quantum Reactor Propulsion Light Treads Treads Light Treads Leg Aluminum Leg Utility Huge Storage Unit Device Advanced Sensor Array Storage Huge Storage Unit Processor Improved Signal Interpreter Hackware Improved Hacking Suite Protection Medium Armor Plating Weapon Gauss Rifle Energy Gun Medium Laser Energy Cannon Advanced Beam Cannon Ballistic Gun Gauss Rifle Launcher Grenade Launcher Special Weapon Plasma Cutter Slashing Weapon Katana Build | -11 -10 -10 -9 -9 -8 -7 -7 -7 -7 -6 -6 -6 -6 -6 -6 -5 -5 -5 -5 -4 -4 -4 -4 -4 -3 -3 -3 -2 -2 ------- Run | Scr Mat Min Mat Min Mat Fac Low Low Dat Pro Fac Ext Cet Arc Hub Fac Upp Upp War Pro Fac Upp Upp Zhi Pro Res Tes Res Qua Slots Evolved 16 | . . . 2 . 2 2 . . . . 2 . . . . 2 . . . . 2 . . . . 2 . 2 . Power 1 | . . . . . . . . . . . . . . . . . . . . . 1 . . . . . . . . Propulsion 4 | . . . 1 . . 1 . . . . . . . . . . . . . . . . . . . 2 . . . Utility 9 | . . . 1 . 1 1 . . . . 2 . . . . 1 . . . . 1 . . . . . . 2 . Weapon 2 | . . . . . 1 . . . . . . . . . . 1 . . . . . . . . . . . . . Parts Attached 253 | 6 4 5 15 6 20 23 9 3 . 6 24 5 5 3 10 4 . . 23 6 10 2 6 4 9 3 30 9 3 Power 16 | 1 . . 2 . . 1 1 . . 1 2 . 1 . . . . . 3 . 1 . . 1 1 1 . . . Engine 8 | 1 . . 2 . . 1 1 . . . 1 . . . . . . . . . 1 . . . 1 . . . . Core 3 | . . . . . . . . . . 1 1 . 1 . . . . . . . . . . . . . . . . Reactor 5 | . . . . . . . . . . . . . . . . . . . 3 . . . . 1 . 1 . . . Propulsion 40 | 2 . 2 4 2 5 6 1 . . 2 7 . 1 . 1 1 . . . . 1 . . . . 1 2 2 . Treads 28 | . . . . . 3 6 1 . . 2 7 . 1 . 1 1 . . . . 1 . . . . 1 2 2 . Leg 12 | 2 . 2 4 2 2 . . . . . . . . . . . . . . . . . . . . . . . . Wheel . | . . . . . . . . . . . . . . . . . . . . . . . . . . . . . . Hover . | . . . . . . . . . . . . . . . . . . . . . . . . . . . . . . Flight . | . . . . . . . . . . . . . . . . . . . . . . . . . . . . . . Utility 121 | 1 3 1 3 2 5 11 6 1 . 2 8 4 2 1 4 2 . . 10 4 8 2 6 3 8 1 19 2 2 Device 65 | . 1 1 3 1 1 4 3 . . 1 3 1 . . 2 2 . . 3 3 5 2 6 1 6 1 14 . 1 Storage 7 | 1 2 . . 1 1 . . . . . 1 . . . . . . . . . . . . . . . 1 . . Processor 8 | . . . . . 1 1 . . . . 1 . 1 . . . . . 2 . 1 . . . . . . . 1 Hackware 6 | . . . . . . 1 . . . . . 1 . 1 . . . . . . 1 . . . . . 1 1 . Protection 35 | . . . . . 2 5 3 1 . 1 3 2 1 . 2 . . . 5 1 1 . . 2 2 . 3 1 . Artifact . | . . . . . . . . . . . . . . . . . . . . . . . . . . . . . . Weapon 76 | 2 1 2 6 2 10 5 1 2 . 1 7 1 1 2 5 1 . . 10 2 . . . . . . 9 5 1 Energy Gun 1 | 1 . . . . . . . . . . . . . . . . . . . . . . . . . . . . . Energy Cannon 28 | . 1 1 5 1 6 1 . 1 . . 3 . . . 2 . . . . . . . . . . . 3 3 1 Ballistic Gun 42 | 1 . . 1 . 4 3 1 1 . 1 3 1 1 1 3 1 . . 10 2 . . . . . . 6 2 . Ballistic Cannon . | . . . . . . . . . . . . . . . . . . . . . . . . . . . . . . Launcher 2 | . . 1 . . . 1 . . . . . . . . . . . . . . . . . . . . . . . Special Weapon 2 | . . . . 1 . . . . . . . . . 1 . . . . . . . . . . . . . . . Impact Weapon . | . . . . . . . . . . . . . . . . . . . . . . . . . . . . . . Slashing Weapon 1 | . . . . . . . . . . . 1 . . . . . . . . . . . . . . . . . . Piercing Weapon . | . . . . . . . . . . . . . . . . . . . . . . . . . . . . . . Special Melee Weapon . | . . . . . . . . . . . . . . . . . . . . . . . . . . . . . . Unidentified Prototypes 26 | . . . 3 1 1 . . . . . . . 1 . 2 . . . 4 . 2 . . 3 . 1 6 1 1 Corrupted Parts 5 | . . . . . . . . . . . . . . . 2 . . . 3 . . . . . . . . . . System Corruption 22 | . . . . . . . . . . . . . . . 10 . . . 12 . . . . . . . . . . Parts Lost 30 | . . . . . . 2 4 . . 5 1 1 4 . 5 . . . . 2 . . . . 1 . 4 1 . Power 4 | . . . . . . . 1 . . 1 . . 1 . . . . . . . . . . . 1 . . . . Propulsion 5 | . . . . . . . 1 . . 2 1 . . . 1 . . . . . . . . . . . . . . Utility 12 | . . . . . . 1 1 . . 1 . 1 2 . 2 . . . . 1 . . . . . . 2 1 . Weapon 9 | . . . . . . 1 1 . . 1 . . 1 . 2 . . . . 1 . . . . . . 2 . . Highest Loss Streak 4 | . . . . . . 2 3 . . 4 1 1 2 . 3 . . . . 1 . . . . 1 . 2 1 . To Critical Strikes . | . . . . . . . . . . . . . . . . . . . . . . . . . . . . . . Average Slot Usage (%) 90 | . 91 100 99 100 99 99 99 100 100 99 96 85 85 86 85 88 88 88 85 82 82 84 84 83 88 80 77 72 73 Engine 4 | . 14 14 11 11 9 7 7 7 7 1 1 . . . . . . . . . 3 5 5 3 4 . . . . Core 1 | . . . . . . . . . . 5 4 6 5 6 6 5 5 5 1 . . . . . . . . . . Reactor 1 | . . . . . . . . . . . . . . . . . . . 3 5 5 5 5 6 5 4 4 4 4 Treads 15 | . . . . . 12 29 29 30 30 29 22 13 13 13 12 11 11 11 11 11 10 10 10 10 10 14 14 13 13 Leg 4 | . 28 28 33 33 14 . . . . . . . . . . . . . . . . . . . . . . . . Device 8 | . 6 14 21 22 16 1 4 4 . 3 6 6 6 6 5 11 11 11 8 5 5 5 5 5 5 9 11 17 17 Storage 6 | . 14 14 11 11 9 7 7 7 7 7 6 6 6 6 6 5 5 5 5 5 5 5 5 5 5 4 4 4 4 Processor 12 | . . . . . 1 15 15 15 15 15 20 20 20 20 20 17 17 17 17 17 15 15 15 15 15 14 12 8 8 Hackware 5 | . . . . . . 6 7 7 7 7 6 6 6 6 6 5 5 5 5 5 10 10 10 10 10 9 5 3 4 Protection 4 | . . . . . 9 5 2 2 7 3 5 5 6 6 6 5 5 5 5 5 5 5 5 4 9 4 3 4 4 Energy Cannon 4 | . 7 13 21 19 22 . . . . . . . . . . 5 5 5 2 . . . . . . . . 2 8 Ballistic Gun 16 | . 14 14 . . 4 22 23 22 23 22 19 20 20 17 19 17 17 17 19 23 21 21 21 21 21 19 18 14 8 Naked Turns . | . . . . . . . . . . . . . . . . . . . . . . . . . . . . . . Heaviest Build 200 | 14 31 31 39 39 110 109 109 109 109 113 114 111 111 110 115 120 120 120 145 146 153 153 153 163 151 167 173 199 200 Greatest Support 235 | 20 20 20 30 40 62 82 82 82 82 82 150 150 150 150 150 150 145 145 145 145 150 150 150 150 150 225 235 235 215 Greatest Overweight (x) 2 | 2 1 1 1 1 1 1 1 1 1 1 1 . . . . . . . . 1 1 1 1 1 1 . . . . Average Overweight (x) . | . . 1 1 . . 1 1 1 1 1 . . . . . . . . . . . 1 1 . . . . . . Largest Inventory Capacity 25 | 8 15 15 15 15 25 25 25 25 25 25 25 25 25 25 25 25 25 25 25 25 25 25 25 25 25 25 25 25 25 Average Capacity 23 | 7 14 15 15 15 19 25 25 25 25 25 25 25 25 25 25 25 25 25 25 25 25 25 25 25 25 25 25 25 25 Most Carried 25 | 4 9 13 15 15 23 25 25 22 22 22 25 25 25 25 25 25 25 25 25 25 25 25 25 25 25 25 25 25 25 Average Carried 21 | 1 3 12 13 14 16 23 22 22 22 19 21 24 24 24 23 21 24 24 24 23 23 25 24 24 24 24 24 23 24 Final Capacity 25 | 8 15 15 15 15 25 25 25 25 25 25 25 25 25 25 25 25 25 25 25 25 25 25 25 25 25 25 25 25 25 Final Carried 25 | 4 9 13 15 15 23 25 22 22 22 19 25 25 24 25 22 24 25 25 25 22 25 25 25 25 25 25 25 25 23 Class Distribution -------------------- 58% | Scavenger-Gunner 10% | Machinist-Gunner 8% | Scavenger-Mutant 6% | Scavenger-Skirmisher 6% | Mutant 5% | Scavenger-Tank Dominant Class ---------------- Mutant | -10/Materials Mutant | -10/Mines Scavenger-Mutant | -9/Materials Scavenger-Mutant | -9/Mines Scavenger-Tank | -8/Materials Scavenger-Gunner | -7/Factory Scavenger-Skirmisher | -7/Lower Caves Scavenger-Skirmisher | -7/Lower Caves Scavenger-Gunner | -7/Data Miner Scavenger-Gunner | -6/Proximity Caves Scavenger-Gunner | -6/Factory Machinist-Gunner | -6/Extension Machinist-Gunner | -6/Cetus Machinist-Gunner | -6/Archives Machinist-Gunner | -6/Hub_04(d) Scavenger-Gunner | -5/Factory Scavenger-Gunner | -5/Upper Caves Scavenger-Gunner | -5/Upper Caves Scavenger-Gunner | -5/Warlord Scavenger-Gunner | -4/Proximity Caves Scavenger-Gunner | -4/Factory Scavenger-Gunner | -4/Upper Caves Scavenger-Gunner | -4/Upper Caves Scavenger-Gunner | -4/Zhirov Scavenger-Gunner | -3/Proximity Caves Scavenger-Gunner | -3/Research Scavenger-Gunner | -3/Testing Scavenger-Gunner | -2/Research Scavenger-Gunner | -2/Quarantine Resources | -11 -10 -10 -9 -9 -8 -7 -7 -7 -7 -6 -6 -6 -6 -6 -6 -5 -5 -5 -5 -4 -4 -4 -4 -4 -3 -3 -3 -2 -2 ----------- Run | Scr Mat Min Mat Min Mat Fac Low Low Dat Pro Fac Ext Cet Arc Hub Fac Upp Upp War Pro Fac Upp Upp Zhi Pro Res Tes Res Qua Matter Collected 14459 | 244 83 35 220 253 1228 941 354 116 . 393 880 928 352 173 584 71 89 . 781 530 552 287 200 . 735 176 1908 1250 1096 Remotely 234 | . . . . . . . . . . . . . . . . . . . . . 234 . . . . . . . . Salvage Created 17367 | . 254 82 764 214 1373 875 164 42 . 68 650 573 366 350 1766 60 29 . 1542 353 785 252 316 . 1049 44 2057 1280 2059 Parts 794 | . 16 4 33 12 60 39 8 1 . 6 42 27 14 13 98 5 3 . 67 20 38 9 19 . 26 2 115 52 65 Haulers Intercepted 15 | . 1 . 2 . 4 2 . . . . 1 . . . 1 . . . . . 1 . . . . . 2 1 . Recyclers Shooed 7 | . 1 1 . . 3 . . . . . 1 1 . . . . . . . . . . . . . . . . . Parts Field Recycled . | . . . . . . . . . . . . . . . . . . . . . . . . . . . . . . Retrieved Matter . | . . . . . . . . . . . . . . . . . . . . . . . . . . . . . . Parts Self-Destructed 148 | . . . . . . . 11 3 . 22 . . . . . . 9 . . 23 . 15 25 . 40 . . . . Prevented 5 | . . . . . . . . . . 2 . . . . . . 1 . . . . 2 . . . . . . . Kills | -11 -10 -10 -9 -9 -8 -7 -7 -7 -7 -6 -6 -6 -6 -6 -6 -5 -5 -5 -5 -4 -4 -4 -4 -4 -3 -3 -3 -2 -2 ------- Run | Scr Mat Min Mat Min Mat Fac Low Low Dat Pro Fac Ext Cet Arc Hub Fac Upp Upp War Pro Fac Upp Upp Zhi Pro Res Tes Res Qua Combat Hostiles Destroyed 212 | . 2 4 8 . 13 15 3 1 . 2 5 7 8 4 19 1 1 . 28 7 9 4 6 . 13 . 21 17 14 Guns 165 | . 1 . . . 1 13 3 1 . 2 5 7 8 4 15 1 1 . 26 7 9 4 6 . 13 . 21 15 2 Cannons 38 | . 1 1 8 . 11 . . . . . . . . . 4 . . . . . . . . . . . . 2 11 AOE 5 | . . 2 . . . 2 . . . . . . . . . . . . 1 . . . . . . . . . . Classes Destroyed 26 | . 4 1 2 . 2 . 1 . . 1 2 1 . . 5 . . . 3 . . . . . 1 . 2 1 . Worker 12 | . . . . . 2 1 . . . . . 1 . . 7 . . . . . 1 . . . . . . . . Builder 23 | . . . . . . . . . . . 4 1 . . 9 . . . . . 1 . . . . . 7 . 1 Tunneler 2 | . . . . . . . . . . . 1 . . . 1 . . . . . . . . . . . . . . Hauler 15 | . 1 . 2 . 4 2 . . . . 1 . . . 1 . . . . . 1 . . . . . 2 1 . Recycler 20 | . 1 . 4 1 6 1 . . . . 1 1 . . 2 . . . . . 1 . . . . . . . 2 Minesweeper 1 | . . . . . . . . . . . . . . . . . . . . . . . . . 1 . . . . Mechanic 2 | . . . . . . . . . . . . . . . 1 . . . . . . . . . . . . . 1 Operator 5 | . . . 1 . . 1 . . . . . . . 2 . . . . . . 1 . . . . . . . . Watcher 15 | . 2 . 1 . 2 1 . . . . 2 . 1 . 1 . . . . . 1 . . . . 1 3 . . Swarmer 36 | . . 2 . . 3 5 2 . . 1 . 1 . . 3 . 1 . 2 3 3 . 2 . 3 . . 5 . Saboteur 1 | . . . . . . . . . . . . . . . . . . . . . . . . . . . 1 . . Grunt 85 | . 2 2 6 . 5 8 . 1 . . 2 2 2 . 7 . . . 9 4 2 4 2 . 7 . 8 4 8 Brawler 5 | . . . . . . . . . . . . . . . 2 . . . 3 . . . . . . . . . . Duelist 6 | . . . . . . . . . . . . . . . 1 . . . 2 . 1 . . . 1 . 1 . . Protector 4 | . . . . . . . . . . . . . . . 1 . . . 1 . . . . . . . . . 2 Researcher 13 | . . . . . . . . . . . . . . . . . . . . . . . . . . . 4 . 9 Sentry 21 | . . . 2 . 4 2 1 . . . . 3 . 4 1 . . . . . 1 . . . . . 2 1 . Demolisher 3 | . . . . . . . . . . . . . . . . . . . 1 . . . . . . . . 2 . Specialist 1 | . . . . . . . . . . . . . . . . . . . 1 . . . . . . . . . . Hunter 14 | . . . . . 1 . . . . . 2 . 1 . . . . . 1 . . . 2 . 2 . 2 . 3 Programmer 17 | . . . . . . . . . . 1 1 . . . 1 1 . . 3 . 2 . . . . . 7 . 1 Heavy 1 | . . . . . . . . . . . . . . . 1 . . . . . . . . . . . . . . Behemoth 3 | . . . . . . . . . . . . 1 . . . . . . . . . . . . . . . 2 . Cetus Guard 5 | . . . . . . . . . . . . . 5 . . . . . . . . . . . . . . . . Lightning 2 | . . . . . . . . . . . . . . . 2 . . . . . . . . . . . . . . Striker 2 | . . . . . . . . . . . . . . . . . . . . . . . . . . . . 2 . Executioner 6 | . . . . . . . . . . . . . . . . . . . 5 . . . . . . . . 1 . Samaritan 1 | . . . . . . . 1 . . . . . . . . . . . . . . . . . . . . . . Best Kill Streak 15 | . 3 2 5 1 4 4 2 1 . 1 3 4 4 4 12 1 1 . 8 3 4 3 4 . 4 1 5 6 15 Combat Bots Only 8 | . 2 2 2 . 2 3 2 1 . 1 2 2 3 4 5 1 1 . 8 3 3 3 4 . 4 . 4 6 5 Max Kills in Single Turn 6 | . 1 1 1 1 2 2 1 1 . 1 2 2 1 1 6 1 1 . 2 2 2 2 2 . 2 1 2 1 2 Gunslinging 1 | . . . . . . . . . . . . . . . 1 . . . 1 . . 1 1 . . . . . . Exploded 2 | . . 1 . . . 2 . . . . . . . . . . . . 1 . . . . . . . . . . Melee . | . . . . . . . . . . . . . . . . . . . . . . . . . . . . . . Uniques/NPCs Destroyed 1 | . . . . 1 . . . . . . . . . . . . . . . . . . . . . . . . . YI-UF0 (-9/Mines) Combat | -11 -10 -10 -9 -9 -8 -7 -7 -7 -7 -6 -6 -6 -6 -6 -6 -5 -5 -5 -5 -4 -4 -4 -4 -4 -3 -3 -3 -2 -2 -------- Run | Scr Mat Min Mat Min Mat Fac Low Low Dat Pro Fac Ext Cet Arc Hub Fac Upp Upp War Pro Fac Upp Upp Zhi Pro Res Tes Res Qua Damage Taken 14257 | . 43 215 165 29 522 974 677 40 . 271 385 891 1465 80 1925 56 . . 1025 984 240 87 313 . 609 55 622 1570 1014 Core 1270 | . 31 46 44 16 89 101 135 . . 29 31 93 120 . 57 28 . . 123 102 . . 67 . 18 . 71 36 33 Absorbed by Shields 2524 | . . . . . . . . . . . . . . . . . . . 122 . . . . . . 51 395 1316 640 Reduced by Siege Mode 1223 | . . . . . . . . . . . 9 188 405 . 265 . . . 82 72 11 . 34 . 6 . 14 50 87 Regen/Repaired (Parts) 1296 | . . . 2 . . . . . . . 164 . . . . . . . 138 . . . . . . . . 615 377 Core Remaining (%) 64 | 100 . 69 . 85 80 . . . . 34 . . . . 42 . . . . 9 . . . . 74 . 86 . . Volleys Fired 770 | . 10 10 39 29 59 47 18 12 . 7 86 29 34 14 48 1 1 . 44 16 21 5 7 . 30 7 80 61 55 Largest 4 | . 2 2 2 2 3 3 3 3 . 3 3 3 3 3 3 4 4 . 4 4 4 4 4 . 4 4 4 4 4 Hottest 291 | . 80 80 136 136 204 84 84 84 . 84 121 84 84 84 121 149 149 . 149 152 152 152 152 . 152 152 152 228 291 Shots Fired 2283 | . 20 15 79 32 180 137 55 28 1 25 176 87 102 38 144 4 4 . 165 63 84 20 28 . 120 28 261 213 174 Gun 1766 | . 13 5 . . 13 135 55 23 1 25 132 87 102 32 132 3 3 . 160 63 84 20 28 . 120 28 239 181 82 Cannon 476 | . 7 5 79 4 167 . . 5 . . 44 . . . 12 1 1 . 5 . . . . . . . 22 32 92 Launcher 7 | . . 5 . . . 2 . . . . . . . . . . . . . . . . . . . . . . . Special 34 | . . . . 28 . . . . . . . . . 6 . . . . . . . . . . . . . . . Kinetic 1763 | . 10 5 . . 13 135 55 23 1 25 132 87 102 32 132 3 3 . 160 63 84 20 28 . 120 28 239 181 82 Thermal 513 | . 10 5 79 32 167 . . 5 . . 44 . . 6 12 1 1 . 5 . . . . . . . 22 32 92 Explosive 7 | . . 5 . . . 2 . . . . . . . . . . . . . . . . . . . . . . . Electromagnetic . | . . . . . . . . . . . . . . . . . . . . . . . . . . . . . . Robot Hit Streak 64 | . 5 4 15 4 26 12 15 8 7 8 23 52 64 12 30 5 1 . 37 18 25 15 17 . 17 6 38 24 18 Robot Miss Streak 8 | . 1 1 3 2 8 5 2 2 . 4 5 2 1 4 3 . 1 . 2 4 3 1 1 . 2 2 2 5 3 Penetration Max 2 | . . . . . . 1 1 1 . . 1 1 1 . 1 . . . 2 . 2 1 1 . 1 . 2 1 2 Secondary Targets 47 | . . . . . . 5 1 . . . 1 2 2 . 6 . . . 10 4 3 1 1 . 3 . 4 3 1 Max Gunslinging Chain 2 | . . . . . . 1 1 . . . 1 1 1 . 1 . . . 2 1 1 1 1 . 1 . 1 1 1 Shots Hit Robots 1452 | . 13 8 48 20 105 91 42 19 1 15 83 75 93 21 104 4 1 . 132 41 47 15 22 . 82 14 119 132 105 Core Hits 713 | . 8 8 18 7 39 41 11 6 . 4 35 31 40 10 78 2 1 . 64 21 28 8 12 . 38 5 74 58 66 Critical Kills 22 | . 1 1 . . 2 2 . . . . 2 . 1 . 1 . . . . 1 2 . . . 1 . 5 . 3 Critical Parts Destroyed 30 | . . . . . . 1 1 . . 1 4 2 . 1 2 . . . 3 3 2 1 . . 3 . 3 2 1 Critical Strikes 56 | . 1 1 . . 2 3 1 1 . 1 6 2 2 1 3 . . . 3 5 4 1 . . 4 . 8 3 4 Meltdown 4 | . . 1 . . 2 . . . . . . . . . . . . . . . . . . . . . . . 1 Destroy 52 | . 1 . . . . 3 1 1 . 1 6 2 2 1 3 . . . 3 5 4 1 . . 4 . 8 3 3 Melee Attacks 2 | . . . . . . . . . . . 2 . . . . . . . . . . . . . . . . . . Impact . | . . . . . . . . . . . . . . . . . . . . . . . . . . . . . . Slashing 2 | . . . . . . . . . . . 2 . . . . . . . . . . . . . . . . . . Piercing . | . . . . . . . . . . . . . . . . . . . . . . . . . . . . . . Sneak Attacks . | . . . . . . . . . . . . . . . . . . . . . . . . . . . . . . Combat Hostiles . | . . . . . . . . . . . . . . . . . . . . . . . . . . . . . . Follow-up Attacks . | . . . . . . . . . . . . . . . . . . . . . . . . . . . . . . Damage Inflicted 39878 | . 187 320 897 271 2343 2222 890 378 20 377 1529 1776 2039 411 3462 53 19 . 3787 1314 1629 457 607 . 2509 258 3909 4075 4139 Guns 31620 | . 98 53 . . 178 2074 890 378 20 377 1521 1739 2039 389 2453 53 19 . 3759 1314 1614 457 607 . 2509 258 3701 3207 1913 Cannons 6799 | . 89 70 894 61 2129 . . . . . . . . . 255 . . . 28 . . . . . . . 179 868 2226 Explosions 1033 | . . 183 . . . 118 . . . . . . . . 732 . . . . . . . . . . . . . . Melee . | . . . . . . . . . . . . . . . . . . . . . . . . . . . . . . Ramming 194 | . . 14 3 . 36 30 . . . . 8 37 . . 22 . . . . . 15 . . . . . 29 . . Kinetic 31596 | . 74 53 . . 178 2074 890 378 20 377 1521 1739 2039 389 2453 53 19 . 3759 1314 1614 457 607 . 2509 258 3701 3207 1913 Thermal 7055 | . 113 70 894 271 2129 . . . . . . . . 22 255 . . . 28 . . . . . . . 179 868 2226 Explosive 301 | . . 183 . . . 118 . . . . . . . . . . . . . . . . . . . . . . . Electromagnetic 732 | . . . . . . . . . . . . . . . 732 . . . . . . . . . . . . . . Impact . | . . . . . . . . . . . . . . . . . . . . . . . . . . . . . . Slashing . | . . . . . . . . . . . . . . . . . . . . . . . . . . . . . . Piercing . | . . . . . . . . . . . . . . . . . . . . . . . . . . . . . . Highest Corruption 18 | . . . 2 2 5 4 4 4 4 4 1 1 1 1 18 . . . 12 12 . . . . . 6 9 . . Average Corruption 3 | . . . 2 2 5 3 4 4 4 4 1 1 1 1 2 . . . 11 12 . . . . . 4 6 . . Corruption Purged . | . . . . . . . . . . . . . . . . . . . . . . . . . . . . . . Corruption Blocked 53 | . . . . . . . . . . . . . . . . . . . 10 . . . . . . . . 8 35 Effects 262 | . . . 4 10 24 39 22 21 4 19 4 11 1 1 7 . . . 23 19 . . . . . 13 40 . . Message Errors 56 | . . . 2 1 7 9 9 6 . 3 2 1 . . 2 . . . 3 5 . . . . . 2 4 . . Matter Fused 65 | . . . . 3 6 11 2 5 . 6 1 4 . . 2 . . . 2 6 . . . . . 2 15 . . Heat Flow Errors 43 | . . . . 1 2 7 4 4 . 4 1 2 . . . . . . 7 2 . . . . . 3 6 . . Energy Discharges 30 | . . . . 1 3 4 3 1 1 1 . 3 1 . 1 . . . 3 1 . . . . . 4 3 . . Data Loss (minor) 26 | . . . 1 1 1 4 2 2 . 1 . . . . . . . . 3 4 . . . . . 2 5 . . Data Loss (major) 8 | . . . . . 1 1 . 1 1 . . . . . . . . . 2 . . . . . . . 2 . . Misfires 21 | . . . 1 2 3 1 1 2 1 4 . . . 1 1 . . . 1 . . . . . . . 3 . . Alerts 7 | . . . . 1 1 1 1 . 1 . . 1 . . . . . . 1 . . . . . . . . . . Misdirections 1 | . . . . . . . . . . . . . . . . . . . 1 . . . . . . . . . . Weapon Failures 5 | . . . . . . 1 . . . . . . . . 1 . . . . 1 . . . . . . 2 . . Overload Shots 4 | . . . . . . . . . . . . . . . . . . . . . . . . . . . 1 3 . Effects 1 | . . . . . . . . . . . . . . . . . . . . . . . . . . . . 1 . Energy Bleed 1 | . . . . . . . . . . . . . . . . . . . . . . . . . . . . 1 . Overflow Damage 109 | . . 6 12 . 21 . . . . . . 17 . . 20 . . . . . . . . . . . 21 . 12 Projectiles 40 | . . . 12 . 16 . . . . . . . . . . . . . . . . . . . . . . . 12 Explosions 26 | . . 6 . . . . . . . . . . . . 20 . . . . . . . . . . . . . . Melee 43 | . . . . . 5 . . . . . . 17 . . . . . . . . . . . . . . 21 . . Knockbacks 1 | . . . . . . 1 . . . . . . . . . . . . . . . . . . . . . . . Impact 1 | . . . . . . 1 . . . . . . . . . . . . . . . . . . . . . . . Kinetic . | . . . . . . . . . . . . . . . . . . . . . . . . . . . . . . Secondary . | . . . . . . . . . . . . . . . . . . . . . . . . . . . . . . Self-Inflicted Damage 103 | . . . . . . . . . . . . . . . 103 . . . . . . . . . . . . . . Shots 1 | . . . . . . . . . . . . . . . 1 . . . . . . . . . . . . . . Rammed 12 | . . . . . 2 4 . . . . 1 1 . . 2 . . . . . 1 . . . . . 1 . . Targets Rammed 23 | . 1 6 1 . 4 4 . . . . 1 1 . . 3 . . . . . 1 . . . . . 1 . . Kicked 10 | . 1 6 1 . 2 . . . . . . . . . . . . . . . . . . . . . . . . Crushed 1 | . . . . . . . . . . . . . . . 1 . . . . . . . . . . . . . . Highest Temperature 343 | . 132 19 58 103 144 235 211 302 . 265 271 216 75 7 21 . . . 343 228 139 99 36 . 306 162 153 . . Average Temperature 51 | . 56 6 24 75 24 43 42 80 . 78 54 51 14 3 5 . . . 77 50 28 46 19 . 117 63 56 . . Received Heat Transfer 2427 | . 24 105 87 . 225 300 84 6 . 12 51 192 45 12 384 12 . . 51 235 39 33 . . 63 . 102 181 184 Effects 3 | . . . . . . . . . . . 1 . . . . . . . 2 . . . . . . . . . . Energy Bleed 1 | . . . . . . . . . . . 1 . . . . . . . . . . . . . . . . . . Interference 2 | . . . . . . . . . . . . . . . . . . . 2 . . . . . . . . . . Siege Activations 51 | . . . . . . . . . . . 1 5 3 1 8 . . . 3 3 3 1 3 . 5 . 6 5 4 Total Turns 855 | . . . . . . . . . . . 48 71 117 8 89 . . . 68 32 18 8 40 . 62 . 79 66 149 Longest Duration 83 | . . . . . . . . . . . 48 17 45 8 44 . . . 28 15 8 8 18 . 22 . 24 24 83 Robots Corrupted . | . . . . . . . . . . . . . . . . . . . . . . . . . . . . . . Combat Hostiles . | . . . . . . . . . . . . . . . . . . . . . . . . . . . . . . Parts Fried 5 | . . . . . 1 . . . . . . . . . 2 . . . 1 . . . . . . . . . 1 Impact Corruptions 3 | . . . . . 1 . . . . . . 1 . . . . . . . . . . . . . . 1 . . Robots Melted 4 | . . 1 . . 2 . . . . . . . . . . . . . . . . . . . . . . . 1 Combat Hostiles 3 | . . 1 . . 1 . . . . . . . . . . . . . . . . . . . . . . . 1 Parts Melted 28 | . . . 4 . 5 . . . . . . . . 1 1 . . . 3 . . . . . . . 7 . 7 Heat Transferred 11031 | . 259 148 1794 814 3838 . . . . . . . . 74 370 . . . 18 . . . . . . . 300 868 2548 Parts Sabotaged . | . . . . . . . . . . . . . . . . . . . . . . . . . . . . . . Parts Stolen . | . . . . . . . . . . . . . . . . . . . . . . . . . . . . . . Parts Stripped . | . . . . . . . . . . . . . . . . . . . . . . . . . . . . . . Power Chain Reactions 2 | . . . . . . . . . . . . . . . 2 . . . . . . . . . . . . . . Missiles Intercepted . | . . . . . . . . . . . . . . . . . . . . . . . . . . . . . . Alert | -11 -10 -10 -9 -9 -8 -7 -7 -7 -7 -6 -6 -6 -6 -6 -6 -5 -5 -5 -5 -4 -4 -4 -4 -4 -3 -3 -3 -2 -2 ------- Run | Scr Mat Min Mat Min Mat Fac Low Low Dat Pro Fac Ext Cet Arc Hub Fac Upp Upp War Pro Fac Upp Upp Zhi Pro Res Tes Res Qua Peak Influence 2454 | . 97 144 379 138 533 758 . . . . 583 610 347 294 1540 820 . . . . 675 . . . . 348 1599 2251 2454 Initial 1266 | . . . 55 132 39 80 . . . . . 285 89 58 102 754 . . . . 127 . . . . 174 . 899 1266 Average 422 | . 44 56 228 85 309 313 . . . . 217 276 178 232 669 770 . . . . 407 . . . . 146 801 1417 1657 Maximum Alert Level 5 | . . . 1 . 2 3 . . . . 2 2 1 1 4 3 . . . . 2 . . . . 1 4 5 5 Low Security (%) 41 | 100 100 100 34 100 29 31 . . . . 56 50 57 17 15 . . . . . 18 . . . . 61 19 . . Level 1 24 | . . . 65 . 33 44 . . . . 23 23 42 82 20 . . . . . 29 . . . . 38 5 . . Level 2 15 | . . . . . 37 21 . . . . 20 26 . . 19 . . . . . 52 . . . . . 8 . . Level 3 7 | . . . . . . 2 . . . . . . . . 28 100 . . . . . . . . . . 39 13 . Level 4 7 | . . . . . . . . . . . . . . . 17 . . . . . . . . . . . 27 58 52 Level 5 1 | . . . . . . . . . . . . . . . . . . . . . . . . . . . . 1 23 High Security 2 | . . . . . . . . . . . . . . . . . . . . . . . . . . . . 26 23 Max Security . | . . . . . . . . . . . . . . . . . . . . . . . . . . . . . . Squads Dispatched 85 | . . . 2 . 3 11 . . . . 10 3 . . 12 1 . . . . 1 . . . . 6 17 2 17 Investigation 19 | . . . 1 . 2 5 . . . . 2 1 . . 1 . . . . . . . . . . 3 2 1 1 Extermination 16 | . . . . . . 4 . . . . 5 . . . 1 1 . . . . 1 . . . . . 3 . 1 Reinforcement 35 | . . . 1 . 1 2 . . . . 2 2 . . 7 . . . . . . . . . . 3 8 1 8 Assault 12 | . . . . . . . . . . . 1 . . . 2 . . . . . . . . . . . 2 . 7 Garrison 3 | . . . . . . . . . . . . . . . 1 . . . . . . . . . . . 2 . . Intercept . | . . . . . . . . . . . . . . . . . . . . . . . . . . . . . . Searches Triggered . | . . . . . . . . . . . . . . . . . . . . . . . . . . . . . . Data Miner Redirects 7 | . . . . . . . . . . . 1 1 . . 2 . . . . . . . . . . . 2 . 1 Construction Impeded 7 | . . . . . . . . . . . . 2 . . 2 . . . . . . . . . . . 3 . . Haulers Reinforced 4 | . . . . . . . . . . . . . . . 1 . . . . . . . . . . 1 1 . 1 Active Scanning Responses . | . . . . . . . . . . . . . . . . . . . . . . . . . . . . . . Cargo Convoy Interrupts 1 | . . . . . . . . . . . . . . . . . . . . . 1 . . . . . . . . Stealth | -11 -10 -10 -9 -9 -8 -7 -7 -7 -7 -6 -6 -6 -6 -6 -6 -5 -5 -5 -5 -4 -4 -4 -4 -4 -3 -3 -3 -2 -2 --------- Run | Scr Mat Min Mat Min Mat Fac Low Low Dat Pro Fac Ext Cet Arc Hub Fac Upp Upp War Pro Fac Upp Upp Zhi Pro Res Tes Res Qua Distress Signals 27 | . . . 1 . 2 . . . . . 1 2 2 . 2 . . . 2 . 2 . . . . 4 1 7 1 Communications Jammed . | . . . . . . . . . . . . . . . . . . . . . . . . . . . . . . Distress Signals . | . . . . . . . . . . . . . . . . . . . . . . . . . . . . . . Times Spotted 578 | . 4 9 18 3 34 41 6 2 . 9 25 18 16 12 49 1 2 . 104 13 17 6 8 . 23 6 51 38 63 Peak Tracking Total 18 | . 2 3 3 3 3 4 4 3 . 4 3 5 5 1 8 1 2 . 18 4 5 4 6 . 5 3 7 11 18 Tactical Retreats 20 | . . . . . 1 1 . . . . . 2 . . 1 . . . 2 . . . . . . . 3 4 6 Traps | -11 -10 -10 -9 -9 -8 -7 -7 -7 -7 -6 -6 -6 -6 -6 -6 -5 -5 -5 -5 -4 -4 -4 -4 -4 -3 -3 -3 -2 -2 ------- Run | Scr Mat Min Mat Min Mat Fac Low Low Dat Pro Fac Ext Cet Arc Hub Fac Upp Upp War Pro Fac Upp Upp Zhi Pro Res Tes Res Qua Traps Triggered 2 | . . . . . . . . . . . . . . . . . . . . . . . . . . 2 . . . Indirectly . | . . . . . . . . . . . . . . . . . . . . . . . . . . . . . . Trap Hack Attempts . | . . . . . . . . . . . . . . . . . . . . . . . . . . . . . . Triggered . | . . . . . . . . . . . . . . . . . . . . . . . . . . . . . . Disarmed . | . . . . . . . . . . . . . . . . . . . . . . . . . . . . . . Reprogrammed . | . . . . . . . . . . . . . . . . . . . . . . . . . . . . . . Reused . | . . . . . . . . . . . . . . . . . . . . . . . . . . . . . . Traps Extracted . | . . . . . . . . . . . . . . . . . . . . . . . . . . . . . . Installed . | . . . . . . . . . . . . . . . . . . . . . . . . . . . . . . Triggered 42 | . . . . . . . . . . 1 . . . . . . . . 35 1 1 2 . . 2 . . . . Machines | -11 -10 -10 -9 -9 -8 -7 -7 -7 -7 -6 -6 -6 -6 -6 -6 -5 -5 -5 -5 -4 -4 -4 -4 -4 -3 -3 -3 -2 -2 ---------- Run | Scr Mat Min Mat Min Mat Fac Low Low Dat Pro Fac Ext Cet Arc Hub Fac Upp Upp War Pro Fac Upp Upp Zhi Pro Res Tes Res Qua Machines Disabled 57 | . . 1 1 . . 2 . . . . 1 1 . 6 11 . . . . . 9 . . . . 1 17 4 3 Max in Single Turn 3 | . . 1 . . . 1 . . . . 1 . . 1 3 . . . . . 3 . . . . 1 2 1 1 Garrison Access 7 | . . . . . 1 1 . . . . . . . . 1 . . . . . 1 . . . . 1 1 . 1 Network Hub 1 | . . . . . . . . . . . . . . . 1 . . . . . . . . . . . . . . Machines Sabotaged . | . . . . . . . . . . . . . . . . . . . . . . . . . . . . . . Garrisons Compromised 1 | . . . . . . . . . . . . . . . . . . . . . 1 . . . . . . . . Overloaded Fab Kills . | . . . . . . . . . . . . . . . . . . . . . . . . . . . . . . Hacking | -11 -10 -10 -9 -9 -8 -7 -7 -7 -7 -6 -6 -6 -6 -6 -6 -5 -5 -5 -5 -4 -4 -4 -4 -4 -3 -3 -3 -2 -2 --------- Run | Scr Mat Min Mat Min Mat Fac Low Low Dat Pro Fac Ext Cet Arc Hub Fac Upp Upp War Pro Fac Upp Upp Zhi Pro Res Tes Res Qua Machines Accessed 73 | . 3 . 5 . 9 8 . . 4 . 8 5 . . 7 . . 1 . . 3 1 . 4 . 5 4 1 5 Terminals 47 | . 3 . 4 . 7 4 . . . . 3 5 . . 6 . . 1 . . 2 . . . . 3 3 1 5 Fabricators 5 | . . . . . . 2 . . . . 2 . . . . . . . . . . . . . . 1 . . . Repair Stations 2 | . . . 1 . . . . . . . 1 . . . . . . . . . . . . . . . . . . Recycling Units 1 | . . . . . . . . . . . 1 . . . . . . . . . . . . . . . . . . Scanalyzers 3 | . . . . . 1 1 . . . . 1 . . . . . . . . . . . . . . . . . . Garrison Access 6 | . . . . . 1 1 . . . . . . . . 1 . . . . . 1 . . . . 1 1 . . Total Hacks 281 | . 9 . 14 . 35 30 . . 29 . 27 16 . . 22 . . 1 . . 15 1 . 17 . 25 14 4 22 Successful 169 | . 4 . 5 . 21 18 . . 29 . 17 6 . . 15 . . 1 . . 8 1 . 17 . 9 3 2 13 Failed 111 | . 5 . 9 . 14 12 . . . . 9 10 . . 7 . . . . . 7 . . . . 16 11 2 9 Catastrophic 25 | . 1 . 2 . 3 2 . . . . 1 1 . . 2 . . . . . 2 . . . . 3 4 1 3 Database Lockouts 1 | . . . . . . . . . . . 1 . . . . . . . . . . . . . . . . . . Manual 146 | . 9 . 12 . 24 13 . . . . 13 11 . . 18 . . . 1 . 9 . . . . 15 4 4 13 Terminals 183 | . 9 . 12 . 29 16 . . . . 11 16 . . 21 . . 1 . . 14 . . . . 17 11 4 22 Fabricators 18 | . . . . . . 8 . . . . 6 . . . . . . . . . . . . . . 4 . . . Repair Stations 6 | . . . 2 . . . . . . . 4 . . . . . . . . . . . . . . . . . . Recycling Units 3 | . . . . . . . . . . . 3 . . . . . . . . . . . . . . . . . . Scanalyzers 10 | . . . . . 4 3 . . . . 3 . . . . . . . . . . . . . . . . . . Garrison Access 14 | . . . . . 2 3 . . . . . . . . 1 . . . . . 1 . . . . 4 3 . . Terminal Hacks 104 | . 2 . 1 . 10 4 . . 29 . 4 3 . . 8 . . 1 . . 5 1 . 17 . 5 3 1 10 Record 18 | . . . . . . . . . 11 . . . . . . . . 1 . . 1 . . 5 . . . . . Part Schematic 14 | . . . . . . . . . 9 . 1 . . . . . . . . . . . . 4 . . . . . Robot Schematic 6 | . . . . . . . . . 6 . . . . . . . . . . . . . . . . . . . . Robot Analysis 7 | . . . . . 2 . . . . . . . . . . . . . . . 1 . . 4 . . . . . Prototype ID Bank 8 | . . . . . 1 . . . 3 . . . . . . . . . . . . . . 4 . . . . . Open Door 2 | . . . . . . . . . . . . . . . . . . . . . . 1 . . . . 1 . . Level Access Points 1 | . . . . . . . . . . . . . . . 1 . . . . . . . . . . . . . . Branch Access Points 5 | . . . . . 1 1 . . . . 1 . . . . . . . . . . . . . . 1 . 1 . Terminal Index 7 | . 1 . 1 . 1 1 . . . . . . . . 1 . . . . . 1 . . . . . . . 1 Fabricator Index 1 | . . . . . . . . . . . 1 . . . . . . . . . . . . . . . . . . Alert Level 11 | . . . . . 2 1 . . . . 1 1 . . 1 . . . . . 1 . . . . 1 1 . 2 Unreport Threat 11 | . . . . . 2 . . . . . . 2 . . 1 . . . . . . . . . . 2 . . 4 Recall Investigation 1 | . . . . . . . . . . . . . . . 1 . . . . . . . . . . . . . . Hauler Manifests 3 | . . . . . 1 1 . . . . . . . . . . . . . . . . . . . 1 . . . Zone Layout 9 | . 1 . . . . . . . . . . . . . 3 . . . . . 1 . . . . . 1 . 3 Fabricator Hacks 9 | . . . . . . 5 . . . . 3 . . . . . . . . . . . . . . 1 . . . Network Status 2 | . . . . . . 1 . . . . . . . . . . . . . . . . . . . 1 . . . Load Schematic 3 | . . . . . . 2 . . . . 1 . . . . . . . . . . . . . . . . . . Build 4 | . . . . . . 2 . . . . 2 . . . . . . . . . . . . . . . . . . Repair Station Hacks 5 | . . . 2 . . . . . . . 3 . . . . . . . . . . . . . . . . . . Scan Component 3 | . . . 1 . . . . . . . 2 . . . . . . . . . . . . . . . . . . Repair 2 | . . . 1 . . . . . . . 1 . . . . . . . . . . . . . . . . . . Recycling Unit Hacks 1 | . . . . . . . . . . . 1 . . . . . . . . . . . . . . . . . . Retrieve Components 1 | . . . . . . . . . . . 1 . . . . . . . . . . . . . . . . . . Scanalyzer 10 | . . . . . 4 3 . . . . 3 . . . . . . . . . . . . . . . . . . Insert Component 4 | . . . . . 2 1 . . . . 1 . . . . . . . . . . . . . . . . . . Analyze 6 | . . . . . 2 2 . . . . 2 . . . . . . . . . . . . . . . . . . Garrison Access Hacks 4 | . . . . . 1 1 . . . . . . . . 1 . . . . . 1 . . . . . . . . Seal Access 4 | . . . . . 1 1 . . . . . . . . 1 . . . . . 1 . . . . . . . . Unauthorized Hacks 36 | . 2 . 2 . 6 5 . . . . 3 3 . . 6 . . . . . 2 . . . . 3 . 1 3 Terminals 33 | . 2 . 2 . 6 3 . . . . 3 3 . . 6 . . . . . 2 . . . . 2 . 1 3 Track 1 | . . . . . . . . . . . . . . . 1 . . . . . . . . . . . . . . Botnet 32 | . 2 . 2 . 6 3 . . . . 3 3 . . 5 . . . . . 2 . . . . 2 . 1 3 Fabricators 3 | . . . . . . 2 . . . . . . . . . . . . . . . . . . . 1 . . . Prioritize 1 | . . . . . . 1 . . . . . . . . . . . . . . . . . . . . . . . Haulers 2 | . . . . . . 1 . . . . . . . . . . . . . . . . . . . 1 . . . Repair Stations . | . . . . . . . . . . . . . . . . . . . . . . . . . . . . . . Recycling Units . | . . . . . . . . . . . . . . . . . . . . . . . . . . . . . . Scanalyzers . | . . . . . . . . . . . . . . . . . . . . . . . . . . . . . . Garrison Access . | . . . . . . . . . . . . . . . . . . . . . . . . . . . . . . Data Cores Recovered 4 | . . . 1 . 1 . . . . . 1 . . . . . . . . . 1 . . . . . . . . Used 2 | . . . . . 1 . . . . . . . . . . . . . . . 1 . . . . . . . . Hacking Detections 54 | . 3 . 5 . 7 7 . . . . 8 5 . . 6 . . . . . 1 . . . . 3 4 1 4 Full Trace Events 18 | . 1 . 1 . 2 5 . . . . 2 1 . . 1 . . . . . . . . . . 1 2 1 1 Feedback Events 1 | . . . . . . . . . . . . . . . . . . . . . . . . . . 1 . . . Corruption 1 | . . . . . . . . . . . . . . . . . . . . . . . . . . 1 . . . Feedback Blocked . | . . . . . . . . . . . . . . . . . . . . . . . . . . . . . . Robot Schematics Acquired 8 | . . . . . . . . . 6 . . . . . . . . . . . . . . . . . 2 . . Robots Built . | . . . . . . . . . . . . . . . . . . . . . . . . . . . . . . Authchips . | . . . . . . . . . . . . . . . . . . . . . . . . . . . . . . Time . | . . . . . . . . . . . . . . . . . . . . . . . . . . . . . . Total Robot Build Rating . | . . . . . . . . . . . . . . . . . . . . . . . . . . . . . . Part Schematics Acquired 24 | . . . . . 2 1 . . 9 . 2 . . . . . . . . . . . . 4 . . 5 . 1 Parts Built 7 | . . . . . . 3 . . . . 4 . . . . . . . . . . . . . . . . . . Authchips . | . . . . . . . . . . . . . . . . . . . . . . . . . . . . . . Time 226 | . . . . . . 120 . . . . 106 . . . . . . . . . . . . . . . . . . Total Part Build Rating 43 | . . . . . . 11 . . . . 32 . . . . . . . . . . . . . . . . . . Parts Repaired 2 | . . . 1 . . . . . . . 1 . . . . . . . . . . . . . . . . . . Time 72 | . . . 53 . . . . . . . 19 . . . . . . . . . . . . . . . . . . Parts Recycled . | . . . . . . . . . . . . . . . . . . . . . . . . . . . . . . Recycled Matter . | . . . . . . . . . . . . . . . . . . . . . . . . . . . . . . Retrieved Matter . | . . . . . . . . . . . . . . . . . . . . . . . . . . . . . . Retrieved Components 10 | . . . . . . . . . . . 10 . . . . . . . . . . . . . . . . . . Parts Scanalyzed 4 | . . . . . 2 1 . . . . 1 . . . . . . . . . . . . . . . . . . Part Schematics Acquired 4 | . . . . . 2 1 . . . . 1 . . . . . . . . . . . . . . . . . . Parts Damaged . | . . . . . . . . . . . . . . . . . . . . . . . . . . . . . . Bothacking | -11 -10 -10 -9 -9 -8 -7 -7 -7 -7 -6 -6 -6 -6 -6 -6 -5 -5 -5 -5 -4 -4 -4 -4 -4 -3 -3 -3 -2 -2 ------------ Run | Scr Mat Min Mat Min Mat Fac Low Low Dat Pro Fac Ext Cet Arc Hub Fac Upp Upp War Pro Fac Upp Upp Zhi Pro Res Tes Res Qua Used RIF Installer . | . . . . . . . . . . . . . . . . . . . . . . . . . . . . . . Robots Hacked . | . . . . . . . . . . . . . . . . . . . . . . . . . . . . . . Non-combat . | . . . . . . . . . . . . . . . . . . . . . . . . . . . . . . Combat . | . . . . . . . . . . . . . . . . . . . . . . . . . . . . . . Robot Hacks Applied . | . . . . . . . . . . . . . . . . . . . . . . . . . . . . . . Relay Couplers Released 7 | . . . . . . . . . . . . . . . . . . . . . . . . . . 5 1 . 1 Machine Destruction 4 | . . . . . . . . . . . . . . . . . . . . . . . . . . 2 1 . 1 Programmers 3 | . . . . . . . . . . . . . . . . . . . . . . . . . . 3 . . . Fabnet Peak Effective % . | . . . . . . . . . . . . . . . . . . . . . . . . . . . . . . Robots Rewired 12 | . . . . . . . . . . . . 9 . . . . . . 3 . . . . . . . . . . Allies Hacked . | . . . . . . . . . . . . . . . . . . . . . . . . . . . . . . Hacks Repelled . | . . . . . . . . . . . . . . . . . . . . . . . . . . . . . . Allies | -11 -10 -10 -9 -9 -8 -7 -7 -7 -7 -6 -6 -6 -6 -6 -6 -5 -5 -5 -5 -4 -4 -4 -4 -4 -3 -3 -3 -2 -2 -------- Run | Scr Mat Min Mat Min Mat Fac Low Low Dat Pro Fac Ext Cet Arc Hub Fac Upp Upp War Pro Fac Upp Upp Zhi Pro Res Tes Res Qua Total Allies 22 | . 1 . . 4 . . . . . 1 . 10 . . . . . . 3 . . . . . . 3 . . . Largest Group 6 | . 1 1 1 5 3 1 1 1 1 2 2 6 5 1 1 1 1 1 4 1 1 1 1 1 1 4 1 1 1 Highest-Rated Group 324 | . 59 59 67 140 105 84 87 87 83 180 182 253 198 125 130 141 138 137 283 133 140 131 131 133 153 324 208 229 228 Highest-Rated Ally 229 | . 59 59 67 69 79 84 87 87 83 96 110 110 120 125 130 141 138 137 159 133 140 131 131 133 153 196 208 229 228 Total Orders . | . . . . . . . . . . . . . . . . . . . . . . . . . . . . . . Ally Attacks 785 | . 5 10 16 13 59 58 18 6 . 22 54 56 30 5 49 1 2 . 67 29 35 8 9 . 34 26 46 52 75 Total Damage 51126 | . 29 178 523 145 1745 2106 761 277 . 652 3021 2079 2526 942 5016 67 140 . 6875 924 1042 261 230 . 1966 1271 5271 4590 8489 Kills 360 | . . 5 10 4 20 26 7 4 . 8 22 16 7 5 35 1 4 . 44 8 6 2 3 . 14 6 31 26 46 Allies Corrupted 1 | . . . . . . . . . . . . 1 . . . . . . . . . . . . . . . . . Allies Melted 2 | . . . . . . . . . . . . . . . . . . . 1 . . . . . . . . 1 . Intel | -11 -10 -10 -9 -9 -8 -7 -7 -7 -7 -6 -6 -6 -6 -6 -6 -5 -5 -5 -5 -4 -4 -4 -4 -4 -3 -3 -3 -2 -2 ------- Run | Scr Mat Min Mat Min Mat Fac Low Low Dat Pro Fac Ext Cet Arc Hub Fac Upp Upp War Pro Fac Upp Upp Zhi Pro Res Tes Res Qua Robot Analysis Total 7 | . . . . . 2 . . . . . . . . . . . . . . . 1 . . 4 . . . . . Derelict Logs Recovered 13 | . . 2 . 1 . . 1 1 . 2 . . . . . . 1 2 . 1 . 1 1 . . . . . . Drone Launches . | . . . . . . . . . . . . . . . . . . . . . . . . . . . . . . Drone Recoveries . | . . . . . . . . . . . . . . . . . . . . . . . . . . . . . . Exploration | -11 -10 -10 -9 -9 -8 -7 -7 -7 -7 -6 -6 -6 -6 -6 -6 -5 -5 -5 -5 -4 -4 -4 -4 -4 -3 -3 -3 -2 -2 ------------- Run | Scr Mat Min Mat Min Mat Fac Low Low Dat Pro Fac Ext Cet Arc Hub Fac Upp Upp War Pro Fac Upp Upp Zhi Pro Res Tes Res Qua Turns Passed 26902 | 60 412 1075 990 743 2237 2213 997 760 191 1095 2355 1453 452 284 798 386 393 432 1670 503 725 576 1022 354 909 866 1369 789 793 Spaces Moved 11048 | 49 181 537 382 452 847 759 383 301 81 408 812 668 142 97 289 203 224 245 748 195 269 214 389 136 430 460 543 335 269 Core 20 | 20 . . . . . . . . . . . . . . . . . . . . . . . . . . . . . Treads 8977 | . . . . . 377 759 383 301 81 408 812 668 142 97 289 203 224 245 748 195 269 214 389 136 430 460 543 335 269 Legs 2051 | 29 181 537 382 452 470 . . . . . . . . . . . . . . . . . . . . . . . . Wheels . | . . . . . . . . . . . . . . . . . . . . . . . . . . . . . . Hover . | . . . . . . . . . . . . . . . . . . . . . . . . . . . . . . Flight . | . . . . . . . . . . . . . . . . . . . . . . . . . . . . . . Fastest Speed 50 | 50 120 190 190 120 155 235 235 236 236 236 173 180 180 180 180 170 170 170 170 170 160 240 240 160 160 160 160 155 158 Average Speed 193 | 96 174 190 190 132 208 235 235 236 236 236 216 180 180 180 180 175 170 170 170 203 215 240 240 238 168 160 160 159 158 Slowest Speed 255 | 150 190 190 190 190 235 236 236 236 236 236 241 180 180 180 180 180 170 170 170 255 240 240 240 240 240 160 160 160 158 Overloaded Moves . | . . . . . . . . . . . . . . . . . . . . . . . . . . . . . . Propulsion Burnouts . | . . . . . . . . . . . . . . . . . . . . . . . . . . . . . . Robots Hopped 1 | . . . . . . . . . . . . . . . . . . . . . . . . . . 1 . . . Cave-ins Triggered . | . . . . . . . . . . . . . . . . . . . . . . . . . . . . . . Teleports 1 | . . . . . . . . . . . . . . . . . . . . . . . . . . . . . 1 Exploration Rate (%) 48 | 3 37 99 36 95 64 22 58 53 70 59 19 83 56 72 36 5 44 47 82 40 11 47 64 60 59 21 55 21 26 Regions Visited 29 Branch Regions 20 Pre-discovered Areas 6 | . . . . 1 . . . . 1 . . . . . . . . . . . . 1 . 3 . . . . . Known Exits Taken 24 | . . 1 . . . 1 1 1 1 1 1 1 1 1 1 1 1 1 1 1 1 1 1 1 1 1 1 1 . Unknown Exits Taken 5 | 1 1 . 1 1 1 . . . . . . . . . . . . . . . . . . . . . . . . Scrap Searched 4 | . . 1 . . . . . 1 . . . . . . . . . 1 . . . . 1 . . . . . . Spaces Dug 60 | . . 6 . . . . . 1 . . 5 . . . . . . . 1 16 . . . . . 1 17 11 2 Terrain Destroyed 577 | . . 23 . . . 10 . 3 . . 13 . . 1 167 . . . 17 38 49 11 15 . 53 6 57 71 43 Melee 1 | . . . . . . . . . . . 1 . . . . . . . . . . . . . . . . . . Projectile 355 | . . . . . . 1 . 3 . . 11 . . 1 2 . . . 17 38 29 11 15 . 53 6 54 71 43 AOE 217 | . . 23 . . . 9 . . . . . . . . 165 . . . . . 20 . . . . . . . . Terrain Rammed . | . . . . . . . . . . . . . . . . . . . . . . . . . . . . . . Walls Destroyed . | . . . . . . . . . . . . . . . . . . . . . . . . . . . . . . Machines Disabled . | . . . . . . . . . . . . . . . . . . . . . . . . . . . . . . Actions | -11 -10 -10 -9 -9 -8 -7 -7 -7 -7 -6 -6 -6 -6 -6 -6 -5 -5 -5 -5 -4 -4 -4 -4 -4 -3 -3 -3 -2 -2 --------- Run | Scr Mat Min Mat Min Mat Fac Low Low Dat Pro Fac Ext Cet Arc Hub Fac Upp Upp War Pro Fac Upp Upp Zhi Pro Res Tes Res Qua Total 14968 | 58 258 569 572 537 1188 1075 434 329 82 525 1259 855 266 171 457 230 234 261 1043 260 363 264 458 167 538 575 882 500 558 Wait 2494 | . 46 11 114 45 212 214 24 14 2 103 304 90 75 55 103 18 9 15 182 40 41 44 55 20 67 95 188 84 224 Move 11017 | 48 180 536 381 451 846 758 382 300 80 407 811 667 141 96 288 202 223 244 747 194 268 213 388 135 429 457 542 334 269 Hop 1 | . . . . . . . . . . . . . . . . . . . . . . . . . . 1 . . . Pick Up 161 | 4 10 1 8 2 24 14 1 . . 2 14 6 7 2 2 4 1 1 12 2 12 . 1 1 1 5 15 6 3 Fast Attach 58 | 6 3 . 6 1 1 . . . . . 4 . . . . . . . 13 . 3 . . 5 3 . 11 2 . Attach 61 | . 1 . 2 . 4 4 4 . . 5 3 1 5 . 8 3 . . 2 2 2 . . . . 2 9 2 2 Detach 8 | . . . . . . . . . . . . . . . 3 . . . . . . . . 1 . 2 2 . . Swap 136 | . . 5 7 5 15 19 5 3 . 1 17 4 . 3 2 1 . . 8 4 5 2 6 . 6 1 10 5 2 Drop 171 | . 7 . 14 4 23 15 . . . . 17 4 4 1 . 1 . 1 22 2 10 . 1 5 2 5 24 6 3 Fire 770 | . 10 10 39 29 59 47 18 12 . 7 86 29 34 14 48 1 1 . 44 16 21 5 7 . 30 7 80 61 55 Melee 2 | . . . . . . . . . . . 2 . . . . . . . . . . . . . . . . . . Ram . | . . . . . . . . . . . . . . . . . . . . . . . . . . . . . . Kick 10 | . 1 6 1 . 2 . . . . . . . . . . . . . . . . . . . . . . . . Crush 13 | . . . . . 2 4 . . . . 1 1 . . 3 . . . . . 1 . . . . . 1 . . Escape Stasis . | . . . . . . . . . . . . . . . . . . . . . . . . . . . . . . Rewire 66 | . . . . . . . . . . . . 53 . . . . . . 13 . . . . . . . . . . Trap . | . . . . . . . . . . . . . . . . . . . . . . . . . . . . . . Miscellaneous . | . . . . . . . . . . . . . . . . . . . . . . . . . . . . . . Route ------- -11/Scrapyard -10/Materials (discovered 2 exits: *Mat / [*Min]) -10/Mines (discovered 2 exits: *Mat x2) -9/Materials (discovered 3 exits: *Mat / [*Min x2]) -9/Mines (discovered 2 exits: *Mat x2) -8/Materials (discovered 2 exits: *Fac x2) -7/Factory (discovered 4 exits: Sto x2 / *Low x2) -7/Lower Caves -7/Lower Caves (discovered 2 exits: *Fac / *Dat) -7/Data Miner -6/Proximity Caves -6/Factory (discovered 8 exits: *Fac x4 / Low x2 / *Ext x2) -6/Extension (discovered 3 exits: *Fac x2 / *Cet) -6/Cetus (discovered 2 exits: *Fac / *Arc) -6/Archives (discovered 2 exits: *Hub x2) -6/Hub_04(d) (discovered 4 exits: *Fac x4) -5/Factory -5/Upper Caves -5/Upper Caves -5/Warlord -4/Proximity Caves -4/Factory (discovered 4 exits: Res x3 / *Upp) -4/Upper Caves -4/Upper Caves (discovered 2 exits: *Res / *Zhi) -4/Zhirov -3/Proximity Caves -3/Research (discovered 4 exits: *Res / Arm / *Tes x2) -3/Testing -2/Research (discovered 3 exits: [*Acc] / *Qua x2) -2/Quarantine (discovered 1 exit: [Acc]) History --------- Turn | Location | Event 5 | -11/Scrapyard | Discovered new exit (range 13) 61 | -11/Scrapyard | Entered Materials 315 | -10/Materials | Build established: Mutant 327 | -10/Materials | Discovered new exit (range 7) 439 | -10/Materials | Discovered new exit (range 11) 473 | -10/Materials | Entered Mines 478 | -10/Mines | Met a Derelict bent on vengeance 506 | -10/Mines | Found a hidden stash of uninstalled traps 716 | -10/Mines | Identified exit to Materials 804 | -10/Mines | Learned Materials trap positions 1108 | -10/Mines | Discovered exit to Materials (range 10) 1224 | -10/Mines | Deemed a non-threat by the Exiles lab entrance 1548 | -10/Mines | Entered Materials 1548 | -9/Materials | Evolved 2 slots: Propulsion x1, Utility x1 1549 | -9/Materials | Loaded intel: 26 trap records 1820 | -9/Materials | Build established: Scavenger-Mutant 1870 | -9/Materials | Discovered new exit (range 6) 2206 | -9/Materials | Repaired Broken Imp. Heat Sink 2282 | -9/Materials | Discovered new exit (range 3) 2335 | -9/Materials | Discovered new exit (range 15) 2538 | -9/Materials | Entered Mines 2634 | -9/Mines | YI-UF0 nonchalantly dropped a Grenade Launcher on the ground 2774 | -9/Mines | Destroyed YI-UF0 2784 | -9/Mines | Found Prototype Storage 2795 | -9/Mines | Identified YI-UF0's Bottomless Matter Pit 2980 | -9/Mines | Received a Mining Laser from a helpful Derelict 3107 | -9/Mines | Discovered new exit (range 6) 3162 | -9/Mines | Assisted by bots powering up and referring to "LRC-V3" 3254 | -9/Mines | Discovered new exit (range 14) 3281 | -9/Mines | Entered Materials 3281 | -8/Materials | Accompanied by 2 allies 3281 | -8/Materials | Evolved 2 slots: Utility x1, Weapon x1 3569 | -8/Materials | Build established: Scavenger-Tank 4053 | -8/Materials | Discovered new exit (range 10) 4784 | -8/Materials | Build established: Tank 5013 | -8/Materials | Discovered new exit (range 15) 5388 | -8/Materials | Build established: Scavenger-Gunner 5518 | -8/Materials | Entered Factory 5518 | -7/Factory | Evolved 2 slots: Propulsion x1, Utility x1 5687 | -7/Factory | Identified exit to Storage 5687 | -7/Factory | Identified exit to Lower Caves 5959 | -7/Factory | Fabricated Adv. Targeting Computer (x1) 6844 | -7/Factory | Fabricated Gauss Rifle (x2) 7731 | -7/Factory | Entered Lower Caves 7744 | -7/Lower Caves | Spotted B-75 Beast 7767 | -7/Lower Caves | Allies destroyed B-75 Beast 7796 | -7/Lower Caves | Lost 3 parts (1p1n1u) 7816 | -7/Lower Caves | Attracted the attention of an 0b10 checkpoint 7817 | -7/Lower Caves | Core integrity fell below 50% 7874 | -7/Lower Caves | Learned Factory terminal intel 8386 | -7/Lower Caves | Build established: Scavenger-Skirmisher 8566 | -7/Lower Caves | Discovered new exit (range 15) 8590 | -7/Lower Caves | Identified exit to Lower Caves 8728 | -7/Lower Caves | Entered another Lower Caves area 8948 | -7/Lower Caves | Discovered new exit (range 10) 8967 | -7/Lower Caves | Identified exit to Factory 9210 | -7/Lower Caves | Attracted the attention of an 0b10 checkpoint 9278 | -7/Lower Caves | Identified exit to Data Miner 9399 | -7/Lower Caves | Encountered a Warlord checkpoint 9488 | -7/Lower Caves | Entered Data Miner 9489 | -7/Data Miner | Discovered new exit (range 6) 9517 | -7/Data Miner | Build established: Scavenger-Gunner 9534 | -7/Data Miner | Met Data Miner 9584 | -7/Data Miner | Learned location of Section 7 (-2) 9584 | -7/Data Miner | Acquired the access code to Warlord's prototype stash 9617 | -7/Data Miner | Received God Mode back door access code from Data Miner 9676 | -7/Data Miner | Identified exit to Proximity Caves 9679 | -7/Data Miner | Entered Proximity Caves 9743 | -6/Proximity Caves | Learned 12 Factory zone layouts 9812 | -6/Proximity Caves | Escorted by Enhanced Grunt 9967 | -6/Proximity Caves | Lost 4 parts (1p2n1u) 10265 | -6/Proximity Caves | Discovered exit to Factory (range 12) 10338 | -6/Proximity Caves | Learned Factory terminal intel 10595 | -6/Proximity Caves | Build established: Scavenger-Skirmisher 10774 | -6/Proximity Caves | Entered Factory 10774 | -6/Factory | Accompanied by 1 ally 10774 | -6/Factory | Evolved 2 slots: Utility x2 10775 | -6/Factory | Identified exit to Factory 10776 | -6/Factory | Loaded intel: 27 terminal locations 11003 | -6/Factory | Identified exit to Lower Caves 11003 | -6/Factory | Identified exit to Extension 11073 | -6/Factory | Build established: Scavenger-Gunner 11525 | -6/Factory | Repaired Adv. Treads 11743 | -6/Factory | Central database locked down 12024 | -6/Factory | Discovered exit to Factory (range 16) 12375 | -6/Factory | Fabricated Imp. Heavy Siege Treads (x2) 12708 | -6/Factory | Fabricated Imp. Heavy Siege Treads (x2) 12874 | -6/Factory | First assault squad dispatched 12894 | -6/Factory | Incoming assault squad redirected 13129 | -6/Factory | Entered Extension 13145 | -6/Extension | Rescued a captive Derelict 13151 | -6/Extension | Rescued a captive Derelict 13152 | -6/Extension | Rescued a captive Derelict 13155 | -6/Extension | Rescued a captive Derelict 13160 | -6/Extension | Rescued a captive Derelict 13168 | -6/Extension | Rescued a captive Derelict 13168 | -6/Extension | Rescued a captive Derelict 13426 | -6/Extension | Build established: Machinist-Gunner 13652 | -6/Extension | Incoming investigation squad redirected 13968 | -6/Extension | Spotted B-75 Beast 13984 | -6/Extension | Destroyed B-75 Beast 14023 | -6/Extension | Spotted B-75 Beast 14046 | -6/Extension | Allies destroyed B-75 Beast 14051 | -6/Extension | Discovered exit to Factory (range 14) 14123 | -6/Extension | Extracted ID and sensor layout for unrecognized location from A7's data core 14544 | -6/Extension | Discovered exit to Factory (range 10) 14545 | -6/Extension | Discovered new exit (range 6) 14579 | -6/Extension | Identified exit to Cetus 14582 | -6/Extension | Entered Cetus 14582 | -6/Cetus | Accompanied by 4 allies 14618 | -6/Cetus | Spotted Cetus Guard 14630 | -6/Cetus | Spotted Cetus Guard 14633 | -6/Cetus | Destroyed Cetus Guard 14637 | -6/Cetus | Spotted Cetus Guard 14653 | -6/Cetus | Spotted Cetus Guard 14653 | -6/Cetus | Destroyed Cetus Guard 14657 | -6/Cetus | Allies destroyed Cetus Guard 14660 | -6/Cetus | Destroyed Cetus Guard 14819 | -6/Cetus | Discovered new exit (range 15) 14874 | -6/Cetus | Spotted Cetus Guard 14875 | -6/Cetus | Spotted Cetus Guard 14879 | -6/Cetus | Spotted Cetus Guard 14889 | -6/Cetus | Allies destroyed Cetus Guard 14900 | -6/Cetus | Allies destroyed Cetus Guard 14903 | -6/Cetus | Destroyed Cetus Guard 14904 | -6/Cetus | Spotted Cetus Guard 14923 | -6/Cetus | Destroyed Cetus Guard 14942 | -6/Cetus | Discovered exit to Factory (range 15) 14951 | -6/Cetus | Met Revision 17 15029 | -6/Cetus | Identified exit to Archives 15034 | -6/Cetus | Entered Archives 15114 | -6/Archives | Discovered new exit (range 16) 15191 | -6/Archives | Discovered new exit (range 15) 15287 | -6/Archives | Identified exit to Hub_04(d) 15318 | -6/Archives | Entered Hub_04(d) 15588 | -6/Hub_04(d) | Garrison activated, responded to threat 15668 | -6/Hub_04(d) | First assault squad dispatched 15717 | -6/Hub_04(d) | Incoming assault squad redirected 15978 | -6/Hub_04(d) | Network Hub disabled 15979 | -6/Hub_04(d) | Core integrity fell below 50% 15994 | -6/Hub_04(d) | Spotted Lightning 15998 | -6/Hub_04(d) | Spotted Lightning 15999 | -6/Hub_04(d) | Spotted Lightning 16011 | -6/Hub_04(d) | Allies destroyed Lightning 16020 | -6/Hub_04(d) | Destroyed Lightning 16030 | -6/Hub_04(d) | Destroyed Lightning 16041 | -6/Hub_04(d) | Incoming assault squad redirected 16046 | -6/Hub_04(d) | Lost 3 parts (1n1u1w) 16056 | -6/Hub_04(d) | Found Corrupted Prototype Device 16059 | -6/Hub_04(d) | Found Corrupted Prototype Energy Cannon 16107 | -6/Hub_04(d) | Identified Exp. Phase Shifter 16108 | -6/Hub_04(d) | System corruption reached 10% 16111 | -6/Hub_04(d) | Identified EMDS 16116 | -6/Hub_04(d) | Entered Factory 16116 | -5/Factory | Evolved 2 slots: Utility x1, Weapon x1 16117 | -5/Factory | Loaded intel: 26 terminal locations 16193 | -5/Factory | Build established: Scavenger-Gunner 16457 | -5/Factory | Discovered new exit (range 4) 16460 | -5/Factory | Identified exit to Upper Caves 16502 | -5/Factory | Entered Upper Caves 16662 | -5/Upper Caves | Learned 12 Factory zone layouts 16867 | -5/Upper Caves | Discovered new exit (range 11) 16892 | -5/Upper Caves | Identified exit to Upper Caves 16895 | -5/Upper Caves | Entered another Upper Caves area 17177 | -5/Upper Caves | Encountered a Warlord checkpoint 17195 | -5/Upper Caves | Learned 4 Factory zone layouts 17202 | -5/Upper Caves | Learned 8 Factory zone layouts 17307 | -5/Upper Caves | Discovered new exit (range 11) 17324 | -5/Upper Caves | Identified exit to Warlord 17327 | -5/Upper Caves | Entered Warlord 17991 | -5/Warlord | Met Warlord 18006 | -5/Warlord | Opened Warlord's prototype stash 18016 | -5/Warlord | Warlord's base attacked by MAIN.C 18016 | -5/Warlord | Found Prototype Reactor 18025 | -5/Warlord | Found Prototype Processor 18025 | -5/Warlord | Identified Exp. Targeting Computer 18035 | -5/Warlord | Found Prototype Hackware 18261 | -5/Warlord | Warlord forces counterattacked 18337 | -5/Warlord | P-80 Master assimilated allied E2-VMN(g) 18421 | -5/Warlord | Spotted Executioner 18426 | -5/Warlord | Spotted Striker 18430 | -5/Warlord | Destroyed Executioner 18462 | -5/Warlord | Found Corrupted Prototype Processor 18462 | -5/Warlord | Identified Exp. Core Analyzer 18463 | -5/Warlord | System corruption reached 10% 18537 | -5/Warlord | Spotted Executioner 18631 | -5/Warlord | Spotted Executioner 18633 | -5/Warlord | Spotted Executioner 18636 | -5/Warlord | Destroyed Executioner 18640 | -5/Warlord | Spotted Striker 18663 | -5/Warlord | Allies destroyed Striker 18691 | -5/Warlord | Warlord base infiltrated, sounded retreat 18753 | -5/Warlord | Spotted Executioner 18756 | -5/Warlord | Spotted Executioner 18760 | -5/Warlord | Destroyed Executioner 18766 | -5/Warlord | Destroyed Executioner 18826 | -5/Warlord | Spotted Striker 18832 | -5/Warlord | Spotted Executioner 18907 | -5/Warlord | Discovered new exit (range 14) 18920 | -5/Warlord | Core integrity fell below 50% 18921 | -5/Warlord | Spotted Striker 18927 | -5/Warlord | Spotted Striker 18938 | -5/Warlord | Spotted Executioner 18941 | -5/Warlord | Allies destroyed Striker 18946 | -5/Warlord | Allies destroyed Striker 18952 | -5/Warlord | Destroyed Executioner 18973 | -5/Warlord | Destroyed 8 combat bots 18983 | -5/Warlord | Identified exit to Proximity Caves 18997 | -5/Warlord | Entered Proximity Caves 19059 | -4/Proximity Caves | Attracted the attention of an 0b10 checkpoint 19075 | -4/Proximity Caves | Core integrity fell below 20% 19232 | -4/Proximity Caves | Identified exit to Factory 19289 | -4/Proximity Caves | Spotted B-86 Titan 19307 | -4/Proximity Caves | Allies destroyed B-86 Titan 19500 | -4/Proximity Caves | Entered Factory 19500 | -4/Factory | Evolved 2 slots: Power x1, Utility x1 19501 | -4/Factory | Identified exit to Research 19501 | -4/Factory | Identified exit to Upper Caves 19503 | -4/Factory | Identified Ghost Barrier 20131 | -4/Factory | Cargo convoy interrupted 20225 | -4/Factory | Entered Upper Caves 20720 | -4/Upper Caves | Discovered new exit (range 3) 20780 | -4/Upper Caves | Identified exit to Upper Caves 20801 | -4/Upper Caves | Entered another Upper Caves area 20882 | -4/Upper Caves | Discovered exit to Research (range 6) 20991 | -4/Upper Caves | Encountered a Warlord checkpoint 21016 | -4/Upper Caves | Learned Research terminal intel 21217 | -4/Upper Caves | Spotted B-86 Titan 21765 | -4/Upper Caves | Discovered new exit (range 12) 21788 | -4/Upper Caves | Identified exit to Zhirov 21823 | -4/Upper Caves | Entered Zhirov 21823 | -4/Zhirov | Discovered new exit (range 3) 21867 | -4/Zhirov | Met Zhirov 21910 | -4/Zhirov | Learned location of Quarantine (-2) 21910 | -4/Zhirov | Learned location of Testing (-3) 21910 | -4/Zhirov | Learned location of Command (-1) 21931 | -4/Zhirov | Zhirov requested help retrieving the SGEMP Prototype 21968 | -4/Zhirov | Found Alien Artifact 21968 | -4/Zhirov | Identified Integrated Reactor 21968 | -4/Zhirov | Installed Integrated Reactor, increased core energy generation (+10) 22000 | -4/Zhirov | Found Alien Artifact 22172 | -4/Zhirov | Identified exit to Proximity Caves 22177 | -4/Zhirov | Entered Proximity Caves 22230 | -3/Proximity Caves | Found Imp. Powered Armor 22270 | -3/Proximity Caves | Attracted the attention of an 0b10 checkpoint 23075 | -3/Proximity Caves | Discovered exit to Research (range 5) 23086 | -3/Proximity Caves | Entered Research 23086 | -3/Research | Evolved 2 slots: Propulsion x2 23087 | -3/Research | Loaded intel: 23 terminal locations 23088 | -3/Research | Identified Vortex Chain Reactor 23286 | -3/Research | Revision forces began assault on 0b10 23323 | -3/Research | Met up with Revision 17++ 23345 | -3/Research | Found Quantum Capacitor 23735 | -3/Research | Identified exit to Armory 23735 | -3/Research | Identified exit to Testing 23741 | -3/Research | Discovered new exit (range 10) 23755 | -3/Research | Identified exit to Research 23786 | -3/Research | Research terminal network offline 23952 | -3/Research | Entered Testing 24033 | -3/Testing | Found Prototype Leg 24132 | -3/Testing | Found Prototype Energy Cannon 24132 | -3/Testing | Identified Hpw. Disruptor Cannon 24344 | -3/Testing | Incoming investigation squad redirected 24524 | -3/Testing | Found Prototype Protection 24952 | -3/Testing | First assault squad dispatched 24976 | -3/Testing | Incoming assault squad redirected 25224 | -3/Testing | Discovered exit to Research (range 15) 25249 | -3/Testing | Found Prototype Hackware 25249 | -3/Testing | Identified Exp. Hacking Suite 25276 | -3/Testing | Build established: Scavenger-Tank 25321 | -3/Testing | Entered Research 25321 | -2/Research | Warlord forces began assault on 0b10 25321 | -2/Research | Evolved 2 slots: Utility x2 25322 | -2/Research | Identified SHELL Armor 25331 | -2/Research | Identified exit to Quarantine 25408 | -2/Research | Spotted B-90 Cyclops 25431 | -2/Research | Research machine network offline 25436 | -2/Research | Destroyed B-90 Cyclops 25610 | -2/Research | Build established: Scavenger-Gunner 25796 | -2/Research | Spotted Striker 25828 | -2/Research | Spotted Executioner 25834 | -2/Research | Spotted Executioner 25840 | -2/Research | Allies destroyed Executioner 25844 | -2/Research | Allies destroyed Executioner 25855 | -2/Research | Destroyed Striker 25881 | -2/Research | Spotted Striker 25886 | -2/Research | Allies destroyed Striker 25887 | -2/Research | Spotted Executioner 25891 | -2/Research | Destroyed Executioner 25892 | -2/Research | Spotted Striker 25899 | -2/Research | Destroyed Striker 25901 | -2/Research | High security lockdown imminent 25931 | -2/Research | Discovered new exit (range 13) 25949 | -2/Research | Spotted Striker 25957 | -2/Research | Allies destroyed Striker 25981 | -2/Research | High security lockdown engaged 26061 | -2/Research | Spotted B-90 Cyclops 26086 | -2/Research | Destroyed B-90 Cyclops 26110 | -2/Research | Entered Quarantine 26225 | -2/Quarantine | Incoming assault squad redirected 26360 | -2/Quarantine | First assault squad dispatched 26396 | -2/Quarantine | Discovered new exit (range 12) 26715 | -2/Quarantine | High security lockdown imminent 26730 | -2/Quarantine | Scanned by Researcher 26764 | -2/Quarantine | Identified Transdimensional Reconstructor 26764 | -2/Quarantine | Warped through subspace 26795 | -2/Quarantine | High security lockdown engaged 26859 | -2/Quarantine | Core integrity fell below 50% 26900 | -2/Quarantine | Core integrity fell below 20% 26903 | -2/Quarantine | Core destroyed Last Messages --------------- 26793_ Extracted 270 matter. 26793_ Acquired YI-UF0's Bottomless Matter Pit. 26795_ ALERT: Lockdown in effect, collecting threat data. 26795_ Slug penetrates Earth. 26796_ Adv. Heat Sink melted. 26796_ G-73 Enforcer destroyed. 26797_ Slug penetrates Player 2. 26797_ Slug penetrates Wall. 26799_ Slug penetrates Player 2. 26800_ H-88 Terminator destroyed. 26800_ Critical hit (Burn: +19). Player 2: "Outta my way!" 26800_ Slug penetrates Player 2. 26801_ H-88 Terminator destroyed. 26815_ ALERT: Assault forces dispatched. 26852_ Slug penetrates G-73 Enforcer. 26856_ Activated siege mode. 26857_ G-73 Enforcer destroyed. 26866_ Ended siege mode. 26872_ Player 2 attaches Lgt. Quantum Reactor. Map ----- +----------------------------------------------------+ | ?????????????????????????????????????????????????? | | ?????????????????????????????????????????????????? | | ?????????????????????????????????????????????????? | | #????????????????????????????????????????????????? | | #????????????????????????????????????????????????? | | #????????????????????????????????????????????????? | | #????????????????????????????????????????????????? | | #????????????????????????????????????????????????? | | #????###?????????????????????????????????????????? | | #????# ?????????????????????????????????????????? | | #????# ?????????????????????????????????????????? | | ###### ?????????????????????????????????????????? | | #*!! # ???""??" #??????????????????????????????? | | # !! # "?""""""" #??????????????????????????????? | | # # """"""""" #??????????????????????????????? | | # "" # " "" ""!" #??????????????????????????????? | | # "" # """"""""" #??????????????????????????????? | | # T" # #??????????????????????????????? | | # "" # #??????????????????????????????? | | + "" # ?? #??????????????????????????????? | | #! # ???? ???#########################????? | | #######+######+###### ???? | | ##??# + ???? | | #??## + ??? | | ####" !!! + ??? | | !%* !!! + @ ??? | | ##### !! = !!!##### ??? | | ????# !! #???########################?????? | | ????# """ !! #????????????????????????????????? | | ????# """ #????????????????????????????????? | | ????# """ #????????????????????????????????? | | ????# #????????????????????????????????? | | ????# #????????????????????????????????? | | ????######## #????????????????????????????????? | | ???????????# #????????????????????????????????? | | ???????????# #????????????????????????????????? | | ???????????# #????????????????????????????????? | | ???????????# #????????????????????????????????? | | ???????????# #????????????????????????????????? | | ???????????# #????????????????????????????????? | | ???????????# #????????????????????????????????? | | ???????????# ?????????????????????????????????? | | ???????????# ?????????????????????????????????? | | ??????????? ?????????????????????????????????? | | ????????????? ?????????????????????????????????? | | ?????????????????????????????????????????????????? | | ?????????????????????????????????????????????????? | | ?????????????????????????????????????????????????? | | ?????????????????????????????????????????????????? | | ?????????????????????????????????????????????????? | +----------------------------------------------------+ Best States ------------- Heat Dissipation 149 Energy Generation 85 Energy Capacity 700 Matter Stores 300 Matter Capacity 300 Sight Range 16 Robot Scan Range 16 Terrain Scan Density 10 Power Amplification 40 Armor Coverage 1800 Weapon Cycling 25 Evasion (%) 55 Targeting Accuracy 12 Core Analysis 8 Recoil Reduction 6 Particle Charging 20 Offensive Hacking 28 Defensive Hacking 20 Item Schematics ----------------- Adv. Targeting Computer | -8/Materials | Scanalyzed Imp. Signal Interpreter | -8/Materials | Scanalyzed Gauss Rifle | -7/Factory | Scanalyzed Combat Drone Bay | -7/Data Miner | Free Lgt. Regenerative Plating | -7/Data Miner | Free Cld. Aerolev Unit | -7/Data Miner | Free Gravity Neutralizer | -7/Data Miner | Free Cld. Plasma Cannon | -7/Data Miner | Free Arm. Medium Treads | -7/Data Miner | Free Lyr. Heavy Armor Plating | -7/Data Miner | Free Disruptor Cannon | -7/Data Miner | Free Gravmag Array | -7/Data Miner | Free Imp. Medium Treads | -6/Factory | Hacked Imp. Heavy Siege Treads | -6/Factory | Scanalyzed Assault Drone Bay | -4/Zhirov | Free Exp. Heat Sink | -4/Zhirov | Free Imp. Arc Thrower | -4/Zhirov | Free Exp. Optical Array | -4/Zhirov | Free Adv. Plasma Rifle | -3/Testing | Archive Shock Maul | -3/Testing | Archive Com. Mass Driver | -3/Testing | Archive Hvy. Dispersion Rifle | -3/Testing | Archive Adv. Myomer Leg | -3/Testing | Archive Exp. Actuator Array | -2/Quarantine | Archive Robot Schematics ------------------ G-50 Soldier | -7/Data Miner | Free B-48 Gladiator | -7/Data Miner | Free M-14 Sweeper | -7/Data Miner | Free S-27 Virus | -7/Data Miner | Free M-22 Extractor | -7/Data Miner | Free R-10 Processor | -7/Data Miner | Free A-02 Transporter | -3/Testing | Archive E-15 Imp | -3/Testing | Archive Fabricated ------------ Adv. Targeting Computer | x1 | -7/Factory Gauss Rifle | x2 | -7/Factory Imp. Heavy Siege Treads | x2 | -6/Factory | Preloaded Imp. Heavy Siege Treads | x2 | -6/Factory Alien Tech Used ----------------- Integrated Reactor Transdimensional Reconstructor Achievements -------------- None Challenges ------------ None Player 2 | -11 -10 -10 -9 -9 -8 -7 -7 -7 -7 -6 -6 -6 -6 -6 -6 -5 -5 -5 -5 -4 -4 -4 -4 -4 -3 -3 -3 -2 -2 ---------- Run | Scr Mat Min Mat Min Mat Fac Low Low Dat Pro Fac Ext Cet Arc Hub Fac Upp Upp War Pro Fac Upp Upp Zhi Pro Res Tes Res Qua Slots Evolved 16 | . . 2 . 2 2 . . . . 2 . . . . 2 . . . . 2 . . . . 2 . 2 . . Power 2 | . . . . . . . . . . . . . . . . . . . . 1 . . . . . . 1 . . Propulsion 4 | . . 1 . 1 2 . . . . . . . . . . . . . . . . . . . . . . . . Utility 7 | . . . . 1 . . . . . 1 . . . . 1 . . . . 1 . . . . 2 . 1 . . Weapon 3 | . . 1 . . . . . . . 1 . . . . 1 . . . . . . . . . . . . . . Parts Attached 298 | . 8 . 9 1 14 13 2 2 . . 26 11 5 4 10 6 2 2 45 5 16 1 2 1 23 28 24 19 19 Parts Lost 80 | . . . . . . 1 1 2 . . 4 1 3 . . . . . 15 . 2 1 1 . 14 1 3 . 31 Damage Taken 20301 | . . 41 122 . 353 802 246 232 20 139 1214 649 432 143 740 203 62 . 4856 298 261 206 55 . 1491 330 1237 1130 5039 Core 2700 | . . . . . 20 129 12 35 . 16 86 22 24 . 52 . . . 568 84 85 18 . . 110 12 97 27 1303 Player 2/Cogmind (%) 68 | . . . . . 18 56 8 100 . 35 73 19 16 . 47 . . . 82 45 100 100 . . 85 100 57 42 97 Absorbed by Shields 3165 | . . . . . . . . . . . . . . . . . . . 632 . . . . . . 85 808 559 1081 Damage Inflicted 49037 | . 29 178 523 . 1685 2106 761 277 . 326 3021 1462 2506 942 5016 67 140 . 6448 924 1042 261 230 . 1966 777 5271 4590 8489 Player 2/Cogmind (%) 55 | . 13 35 36 . 41 48 46 42 . 46 66 45 55 69 59 55 88 . 62 41 39 36 27 . 43 75 57 52 67 Combat Hostiles Destroyed 283 | . . 5 5 . 13 22 3 2 . 4 18 10 6 . 21 1 4 . 42 8 6 2 3 . 13 4 25 25 41 Player 2/Cogmind (%) 57 | . . 55 38 . 50 59 50 66 . 66 78 58 42 . 52 50 80 . 60 53 40 33 33 . 50 100 54 59 74 Game ------ Seed HackingProtonCapacitor Manual? 0 Play Time 03:20:59 Cumulative 1578.8 hours Start 2022.08.30 @ 16:14:22 End 2022.08.30 @ 20:14:59 Sessions 2 Manual Loads 0 Difficulty Rogue Special Mode AFD2020/Player2 Game No. 555 Rogue 555 Adventurer 0 Explorer 0 Win Type - Total 113 Types 25/12/46/6/1/2/19/1/1 Lore% 98 Gallery% 97 Achievement% 86 Wizard Run 0 Options --------- ASCII 0 Keyboard 0 Movement Numpad Keybinds 0 Fullscreen 1 Font 18/SmallcapsGlow Map View 76x50 Tactical HUD 1 Map Filters NONE Filters NONE Steam 1 RUN: d6183f51-bfc5-4eae-8239-169136730fed